[Event "British Championship 2024"]
[Site "Hull"]
[Date "2024.07.31"]
[Round "4.39"]
[White "Arnott, Jonathan W"]
[Black "Bradbury, Neil H"]
[Result "1/2-1/2"]
[Annotator "RC"]
[ECO "B15"]
[WhiteElo "2104"]
[BlackElo "2153"]
[PlyCount "140"]
[EventDate "2024.07.31"]
[EventCountry "GBR"]
[SourceTitle "playchess.com"]
[Source "ChessBase"]
[SourceQuality "1"]
[TimeControl "40/5400+30:1800+30"]

1. e4 {[%emt 0:00:02]} c6 {[%emt 0:00:10]} 2. d4 {[%emt 0:00:03]} d5 {[%emt 0:00:05]} 3. Nc3 {[%emt 0:00:12]} dxe4 {[%emt 0:00:23]} 4. Nxe4 {[%emt 0:00:05]} Nf6 {[%emt 0:00:05]} 5. Nxf6+ {[%emt 0:00:10]} exf6 {[%emt 0:00:09]} 6. Be3 {[%emt 0:00:07]} Bd6 {[%emt 0:01:19]} 7. Bd3 {[%emt 0:01:01]} O-O {[%emt 0:01:10]} 8. Qh5 {[%emt 0:04:14]} g6 {[%emt 0:11:01]} 9. Qf3 {[%emt 0:01:23]} Be6 {[%emt 0:05:57]} 10. Ne2 {[%emt 0:05:26]} Re8 {[%emt 0:10:31]} 11. Nf4 {[%emt 0:03:51]} Nd7 {[%emt 0:13:52]} 12. Nxe6 {[%emt 0:10:45]} Rxe6 {[%emt 0:00:09]} 13. O-O-O {[%emt 0:04:32]} f5 {[%emt 0:04:40]} 14. Bc4 {[%emt 0:02:47]} Re4 {[%emt 0:01:29]} 15. Bd3 {[%emt 0:00:10]} Re8 {[%emt 0:00:49]} 16. h4 {[%emt 0:00:46]} h5 {[%emt 0:07:40]} 17. Bxf5 {[%emt 0:08:41]} gxf5 {[%emt 0:09:49]} 18. Qxf5 {[%emt 0:05:00]} Re6 {[%emt 0:00:22]} 19. Qxh5 {[%emt 0:01:10]} Rg6 {[%emt 0:00:56]} 20. Qf5 {[%emt 0:01:54]} Nf8 {[%emt 0:02:47]} 21. d5 {[%emt 0:13:09]} Qc8 {[%emt 0:10:24]} 22. Qd3 {[%emt 0:01:52]} cxd5 {[%emt 0:00:29]} 23. h5 {[%emt 0:00:29]} Re6 {[%emt 0:05:11]} 24. Qxd5 {[%emt 0:10:33]} Be5 {[%emt 0:00:59]} 25. Rh4 {[%emt 0:01:07]} Qc6 {[%emt 0:00:48]} 26. Rg4+ {[%emt 0:00:40]} Kh8 {[%emt 0:00:15]} 27. Qxc6 {[%emt 0:04:38]} bxc6 {[%emt 0:03:22]} 28. c3 {[%emt 0:02:12]} Nh7 {[%emt 0:01:11]} 29. Ra4 {[%emt 0:00:16]} Re7 {[%emt 0:02:29]} 30. Bc5 {[%emt 0:01:35]} Rb7 {[%emt 0:00:47]} 31. Kc2 {[%emt 0:03:17]} Nf8 {[%emt 0:02:55]} 32. Re4 {[%emt 0:02:03]} Bf6 {[%emt 0:02:54]} 33. Bxf8 {[%emt 0:03:36]} Rxf8 {[%emt 0:00:08]} 34. Rd6 {[%emt 0:00:02]} Bd8 {[%emt 0:00:47]} 35. Rxc6 {[%emt 0:00:40]} Bb6 {[%emt 0:00:04]} 36. f3 {[%emt 0:04:31]} Rd7 {[%emt 0:00:19]} 37. Rcc4 {[%emt 0:00:56]} Rfd8 {[%emt 0:00:14]} 38. Re2 {[%emt 0:00:08]} Kg7 {[%emt 0:00:19]} 39. Rce4 {[%emt 0:00:45]} Rd5 {[%emt 0:01:20]} 40. Re5 {[%emt 0:00:40]} Rd1 {[%emt 0:01:11]} 41. a4 {[%emt 0:34:57]} Ra1 {[%emt 0:30:24]} 42. R5e4 {[%emt 0:00:00]} Rd5 {[%emt 0:00:00]} 43. Rg4+ {[%emt 0:00:00]} Kf6 {[%emt 0:00:00]} 44. Rf4+ {[%emt 0:00:00]} Rf5 {[%emt 0:00:00]} 45. Ree4 {[%emt 0:00:00]} Rh1 {[%emt 0:00:00]} 46. g4 {[%emt 0:00:00]} Rxf4 {[%emt 0:00:00]} 47. Rxf4+ {[%emt 0:00:00]} Ke6 {[%emt 0:00:00]} 48. Kd3 {[%emt 0:00:00]} f6 {[%emt 0:00:00]} 49. Kc4 {[%emt 0:00:00]} a6 {[%emt 0:00:00]} 50. Re4+ {[%emt 0:00:00]} Kd6 {[%emt 0:00:00]} 51. f4 {[%emt 0:00:00]} f5 {[%emt 0:00:00]} 52. gxf5 {[%emt 0:00:00]} Rxh5 {[%emt 0:00:00]} 53. Re6+ {[%emt 0:00:00]} Kc7 {[%emt 0:00:00]} 54. Rf6 {[%emt 0:00:00]} Kb7 {[%emt 0:00:00]} 55. Kd5 {[%emt 0:00:00]} Bc7 {[%emt 0:00:00]} 56. Ke6 {[%emt 0:00:00]} Rh4 {[%emt 0:00:59]} 57. Rg6 {[%emt 0:00:00]} Rxf4 {[%emt 0:00:18]} 58. f6 {[%emt 0:03:27]} Rxa4 {[%emt 0:04:59]} 59. f7 {[%emt 0:01:05]} Re4+ {[%emt 0:00:19]} 60. Kd7 {[%emt 0:00:20]} Rf4 {[%emt 0:00:30]} 61. Ke7 {[%emt 0:00:51]} Bb6 {[%emt 0:02:16]} 62. Rxb6+ {[%emt 0:01:52]} Kxb6 {[%emt 0:00:06]} 63. f8=Q {[%emt 0:00:05]} Rxf8 {[%emt 0:00:05]} 64. Kxf8 {[%emt 0:00:02]} Kb5 {[%emt 0:00:37]} 65. b3 {[%emt 0:02:46]} a5 {[%emt 0:00:04]} 66. Ke7 {[%emt 0:01:02]} a4 {[%emt 0:00:06]} 67. c4+ {[%emt 0:00:28]} Kb4 {[%emt 0:00:07]} 68. bxa4 {[%emt 0:00:07]} Kxc4 {[%emt 0:00:06]} 69. a5 {[%emt 0:00:03]} Kb5 {[%emt 0:00:03]} 70. a6 {[%emt 0:00:01]} Kxa6 {[%emt 0:00:05]} 1/2-1/2

[Event "British Championship 2024"]
[Site "Hull"]
[Date "2024.07.31"]
[Round "4.41"]
[White "Lentzos, Ioanis"]
[Black "Starley, Robert"]
[Result "0-1"]
[Annotator "RC"]
[ECO "A50"]
[WhiteElo "2119"]
[BlackElo "2017"]
[PlyCount "120"]
[EventDate "2024.07.31"]
[EventCountry "GBR"]
[SourceTitle "playchess.com"]
[Source "ChessBase"]
[SourceQuality "1"]
[TimeControl "40/5400+30:1800+30"]

1. c4 {[%emt 0:00:04]} b6 {[%emt 0:00:03]} 2. d4 {[%emt 0:00:51]} Bb7 {[%emt 0:00:10]} 3. Nc3 {[%emt 0:00:52]} e6 {[%emt 0:00:11]} 4. a3 {[%emt 0:00:24]} Nf6 {[%emt 0:00:16]} 5. d5 {[%emt 0:01:03]} Bd6 {[%emt 0:00:35]} 6. Nf3 {[%emt 0:00:21]} O-O {[%emt 0:00:32]} 7. g3 {[%emt 0:00:38]} c6 {[%emt 0:00:53]} 8. Bg2 {[%emt 0:01:36]} cxd5 {[%emt 0:00:39]} 9. cxd5 {[%emt 0:00:08]} Na6 {[%emt 0:01:08]} 10. O-O {[%emt 0:04:03]} exd5 {[%emt 0:00:37]} 11. Nb5 {[%emt 0:02:01]} Be7 {[%emt 0:00:37]} 12. b4 {[%emt 0:02:06]} Nc7 {[%emt 0:00:50]} 13. Nxc7 {[%emt 0:04:22]} Qxc7 {[%emt 0:00:06]} 14. Nd4 {[%emt 0:07:32]} g6 {[%emt 0:01:09]} 15. Bb2 {[%emt 0:01:22]} Rfc8 {[%emt 0:01:03]} 16. Rc1 {[%emt 0:03:31]} Qd8 {[%emt 0:00:31]} 17. Nb5 {[%emt 0:05:15]} Rxc1 {[%emt 0:00:57]} 18. Qxc1 {[%emt 0:01:40]} Bc6 {[%emt 0:00:44]} 19. Nd4 {[%emt 0:01:21]} Rc8 {[%emt 0:00:44]} 20. Qf4 {[%emt 0:16:53]} Bb7 {[%emt 0:00:49]} 21. Nb5 {[%emt 0:11:36]} Rc4 {[%emt 0:00:55]} 22. Qe5 {[%emt 0:02:39]} Ba6 {[%emt 0:01:16]} 23. Bxd5 {[%emt 0:12:09]} Bxb5 {[%emt 0:04:35]} 24. Bxc4 {[%emt 0:01:39]} Bxc4 {[%emt 0:00:08]} 25. g4 {[%emt 0:01:25]} d6 {[%emt 0:04:34]} 26. Qd4 {[%emt 0:00:23]} Bxe2 {[%emt 0:01:15]} 27. g5 {[%emt 0:02:50]} Bxf1 {[%emt 0:02:26]} 28. Kxf1 {[%emt 0:01:44]} Bf8 {[%emt 0:06:17]} 29. gxf6 {[%emt 0:06:52]} d5 {[%emt 0:00:51]} 30. Bc1 {[%emt 0:00:23]} Qc8 {[%emt 0:01:06]} 31. Be3 {[%emt 0:01:08]} Qc4+ {[%emt 0:01:36]} 32. Qxc4 {[%emt 0:02:00]} dxc4 {[%emt 0:00:05]} 33. Ke2 {[%emt 0:01:17]} Bd6 {[%emt 0:00:28]} 34. Kf3 {[%emt 0:01:17]} Be5 {[%emt 0:00:56]} 35. Ke4 {[%emt 0:00:51]} Bxf6 {[%emt 0:00:51]} 36. a4 {[%emt 0:02:37]} c3 {[%emt 0:01:40]} 37. Kd3 {[%emt 0:01:18]} Kf8 {[%emt 0:01:08]} 38. b5 {[%emt 0:00:39]} Ke8 {[%emt 0:01:00]} 39. a5 {[%emt 0:00:12]} bxa5 {[%emt 0:02:08]} 40. Bxa7 {[%emt 0:00:21]} Kd7 {[%emt 0:00:24]} 41. Be3 {[%emt 0:31:03]} Kd6 {[%emt 0:31:07]} 42. Kc4 {[%emt 0:00:17]} c2 {[%emt 0:01:40]} 43. Bc1 {[%emt 0:00:00]} Kc7 {[%emt 0:00:00]} 44. Kb3 {[%emt 0:00:00]} Kb6 {[%emt 0:00:00]} 45. Kc4 {[%emt 0:00:00]} Kb7 {[%emt 0:00:00]} 46. f3 {[%emt 0:00:00]} Bd8 {[%emt 0:00:00]} 47. Kb3 {[%emt 0:00:00]} Kb6 {[%emt 0:00:00]} 48. Kc4 {[%emt 0:00:00]} Be7 {[%emt 0:00:00]} 49. Be3+ {[%emt 0:00:00]} Kb7 {[%emt 0:00:00]} 50. Kb3 {[%emt 0:00:00]} Bc5 {[%emt 0:00:00]} 51. Bd2 {[%emt 0:00:00]} f6 {[%emt 0:00:00]} 52. Ka4 {[%emt 0:00:00]} Bd4 {[%emt 0:00:00]} 53. Bc1 {[%emt 0:00:00]} Kb6 {[%emt 0:00:00]} 54. h3 {[%emt 0:00:00]} g5 {[%emt 0:00:00]} 55. Kb3 {[%emt 0:00:03]} Kxb5 {[%emt 0:00:00]} 56. f4 {[%emt 0:00:16]} gxf4 {[%emt 0:00:00]} 57. Bxf4 {[%emt 0:00:06]} a4+ {[%emt 0:00:00]} 58. Kxc2 {[%emt 0:00:06]} Kc4 {[%emt 0:00:00]} 59. Bc1 {[%emt 0:00:28]} f5 {[%emt 0:00:00]} 60. Bf4 {[%emt 0:02:31]} a3 {[%emt 0:00:00]} 0-1

[Event "British Championship 2024"]
[Site "Hull"]
[Date "2024.07.31"]
[Round "4.43"]
[White "Merriman, James"]
[Black "Beaumont, Chris R"]
[Result "1-0"]
[Annotator "RC"]
[ECO "A65"]
[WhiteElo "1974"]
[BlackElo "2198"]
[PlyCount "59"]
[EventDate "2024.07.31"]
[EventCountry "GBR"]
[SourceTitle "playchess.com"]
[Source "ChessBase"]
[SourceQuality "1"]
[TimeControl "40/5400+30:1800+30"]

1. d4 {[%emt 0:00:04]} Nf6 {[%emt 0:05:09]} 2. c4 {[%emt 0:00:13]} g6 {[%emt 0:00:49]} 3. f3 {[%emt 0:00:04]} Bg7 {[%emt 0:00:25]} 4. e4 {[%emt 0:00:07]} d6 {[%emt 0:00:04]} 5. Nc3 {[%emt 0:00:05]} O-O {[%emt 0:00:10]} 6. Bg5 {[%emt 0:00:05]} h6 {[%emt 0:01:13]} 7. Be3 {[%emt 0:00:22]} c5 {[%emt 0:00:14]} 8. d5 {[%emt 0:00:07]} e6 {[%emt 0:00:22]} 9. Qd2 {[%emt 0:00:36]} exd5 {[%emt 0:00:16]} 10. cxd5 {[%emt 0:00:03]} Re8 {[%emt 0:11:46]} 11. Nge2 {[%emt 0:00:35]} Nbd7 {[%emt 0:00:43]} 12. Nc1 {[%emt 0:09:07]} a6 {[%emt 0:04:23]} 13. a4 {[%emt 0:00:10]} Rb8 {[%emt 0:00:07]} 14. Be2 {[%emt 0:00:53]} Kh7 {[%emt 0:03:20]} 15. O-O {[%emt 0:00:18]} Qc7 {[%emt 0:08:22]} 16. Rb1 {[%emt 0:11:15]} c4 {[%emt 0:06:56]} 17. b4 {[%emt 0:06:04]} h5 {[%emt 0:31:03]} 18. b5 {[%emt 0:07:55]} Ne5 {[%emt 0:00:57]} 19. b6 {[%emt 0:03:57]} Qe7 {[%emt 0:00:40]} 20. h3 {[%emt 0:02:50]} Ng8 {[%emt 0:06:43]} 21. f4 {[%emt 0:20:30]} Nd7 {[%emt 0:00:02]} 22. Bd4 {[%emt 0:00:41]} Bxd4+ {[%emt 0:00:33]} 23. Qxd4 {[%emt 0:00:05]} Nc5 {[%emt 0:01:56]} 24. Bf3 {[%emt 0:03:13]} Nf6 {[%emt 0:03:18]} 25. Re1 {[%emt 0:01:03]} Bf5 {[%emt 0:00:30]} 26. N1e2 {[%emt 0:14:13]} Nfxe4 {[%emt 0:00:55]} 27. Nxe4 {[%emt 0:03:42]} Nxe4 {[%emt 0:00:35]} 28. Ng3 {[%emt 0:01:28]} Qf6 {[%emt 0:02:05]} 29. Nxf5 {[%emt 0:00:33]} gxf5 {[%emt 0:00:05]} 30. Rxe4 {[%emt 0:00:12]} 1-0

[Event "British Championship 2024"]
[Site "Hull"]
[Date "2024.07.31"]
[Round "5.1"]
[White "Royal, Shreyas"]
[Black "Jones, Gawain C B"]
[Result "1/2-1/2"]
[Annotator "TA"]
[ECO "E61"]
[WhiteElo "2483"]
[BlackElo "2633"]
[PlyCount "56"]
[EventDate "2024.07.31"]
[EventCountry "GBR"]
[SourceTitle "playchess.com"]
[Source "ChessBase"]
[SourceQuality "1"]
[TimeControl "40/5400+30:1800+30"]

{[%evp 13,56,29,22,28,27,38,26,29,27,21,25,0,72,72,77,-65,-26,-72,-64,-75,-80,-118,-100,-122,-133,-118,-133,-129,0,0,0,0,0,0,0,0,4,0,146,150,124,124,214,190,412]} 1. d4 {[%emt 0:00:03]} Nf6 {[%emt 0:00:38]} 2. c4 {[%emt 0:00:06]} g6 {[%emt 0:00:04]} 3. Nc3 {[%emt 0:00:05]} Bg7 {[%emt 0:00:04]} 4. Nf3 {[%emt 0:00:06]} O-O {[%emt 0:00:20]} 5. Bg5 {[%emt 0:00:05]} c5 {[%emt 0:01:31]} 6. d5 {[%emt 0:00:07]} h6 {[%emt 0:00:25]} 7. Bh4 {[%emt 0:00:06]} d6 {[%emt 0:00:22]} 8. Nd2 {[%emt 0:00:47]} g5 {[%emt 0:06:01]} 9. Bg3 {[%emt 0:00:06]} Nh5 {[%emt 0:00:04]} 10. e3 {[%emt 0:00:17] White has an edge.} Nxg3 {[%emt 0:00:09]} 11. hxg3 {[%emt 0:00:05]} e6 {[%emt 0:02:26]} 12. Bd3 {[%emt 0:00:06]} f5 {[%emt 0:05:49]} (12... exd5 $11 13. Nxd5 f5) 13. g4 $16 {[%emt 0:09:34] White is more active.} fxg4 {[%emt 0:12:16]} 14. Qc2 {[%emt 0:13:00]} ({White should play} 14. Qxg4 $16 {Threatens to win with Qe4.} exd5 15. Qh5) 14... Nd7 {[%emt 0:05:53][%cal Bb8d7,Bd7e5,Be5c4][%mdl 32]} 15. dxe6 {[%emt 0:07:53]} (15. Nde4 $11 {is superior.}) 15... Ne5 $17 {[%emt 0:02:05]} 16. Bf5 {[%emt 0:00:06] Nd5 is the strong threat.} Qe8 {[%emt 0:01:48]} 17. O-O-O {[%emt 0:03:57][%cal Od2e4] And now Nde4! would win.} Bxe6 {[%emt 0:02:11]} 18. Bh7+ {[%emt 0:07:23]} Kh8 {[%emt 0:01:56]} 19. Nde4 {[%emt 0:01:29]} Nxc4 {[%emt 0:16:22] Strongly threatening ...d5.} (19... Kxh7 20. Nxg5+ Kh8 21. Qh7#) 20. Nxg5 {[%emt 0:00:05] [#]} d5 {[%emt 0:06:12] Prevents Be4.} (20... g3 $1 $17 21. Bg6 Qe7 (21... Rxf2 22. Qe4 $11)) 21. Bg6 $11 {[%emt 0:04:01][%cal Og6f7] White threatens Bf7! and mate. Really sharp!} (21. Nxd5 $2 Bxb2+ (21... Nxb2 $2 22. Rxh6 Bxh6 23. Rh1 $18) 22. Kb1 Bxd5 (22... hxg5 23. Bg8+) 23. Rxd5 Na3+ 24. Kxb2 Nxc2 $19) 21... Rxf2 {[%emt 0:03:30]} 22. Qxf2 {[%emt 0:09:49]} Qxg6 {[%emt 0:01:30]} 23. Nxe6 {[%emt 0:00:53]} Qxe6 {[%emt 0:00:05]} 24. Rxd5 {[%emt 0:05:41]} (24. Nxd5 $2 Bxb2+ 25. Kc2 Bg7 $19) 24... Rf8 {[%emt 0:02:43] Against e4} (24... Bxc3 $2 25. bxc3 Kg8 (25... Qxd5 $2 {too greedy.} 26. Qf6+ Kg8 27. Qg6+ Kf8 28. Rf1+ Ke7 29. Qg7+ Kd6 30. Rf6+ $18) 26. Rxc5 $18) 25. Qe2 {[%emt 0:00:35]} Bxc3 {[%emt 0:12:12]} (25... Qxe3+ $11 26. Qxe3 Nxe3) 26. Qxc4 $16 {[%emt 0:00:56]} Qxe3+ {[%emt 0:00:11]} 27. Kb1 {[%emt 0:00:07]} Bd4 {[%emt 0:00:16] [#]} (27... Bg7 $16) 28. Rd7 $1 $18 {[%emt 0:07:42][%mdl 1024] White has strong compensation.} b6 $2 {[%emt 0:14:18][%mdl 32768] Weighted Error Value: White=0.19 (very precise) /Black=0.34.  Mistake:       	White=2     	Black=5      Inaccurate:     	White=1     	Black=1      OK:         	White=8     	Black=7      Best:        	White=4     	Black=5      Strong:       	White=1     	---       . An unexpected result.} (28... Qe4+ {was called for.} 29. Qc2 Qxc2+ 30. Kxc2 Rf2+ 31. Kd3 Bg7) 1/2-1/2

[Event "British Championship 2024"]
[Site "Hull"]
[Date "2024.07.31"]
[Round "5.2"]
[White "Ghasi, Ameet K"]
[Black "Conquest, Stuart C"]
[Result "1-0"]
[Annotator "TA"]
[ECO "A20"]
[WhiteElo "2496"]
[BlackElo "2510"]
[PlyCount "55"]
[EventDate "2024.07.31"]
[EventCountry "GBR"]
[SourceTitle "playchess.com"]
[Source "ChessBase"]
[SourceQuality "1"]
[TimeControl "40/5400+30:1800+30"]

{[%evp 9,55,41,26,41,77,93,87,66,71,70,67,46,59,41,62,58,56,53,62,49,85,57,139,137,140,143,145,140,133,113,213,208,217,209,199,199,205,206,219,186,159,89,181,182,859,805,29981,710]} 1. c4 {[%emt 0:01:19]} e5 {[%emt 0:04:52]} 2. g3 {[%emt 0:00:39]} Nf6 {[%emt 0:04:04]} 3. Bg2 {[%emt 0:00:26]} h6 {[%emt 0:05:49]} 4. Nf3 {[%emt 0:05:16]} e4 {[%emt 0:00:59]} 5. Nd4 {[%emt 0:01:14]} Nc6 {[%emt 0:01:29]} 6. Nc2 {[%emt 0:02:13]} Bc5 {[%emt 0:19:19]} 7. Nc3 {[%emt 0:06:10]} Qe7 {[%emt 0:00:40]} 8. Ne3 {[%emt 0:05:40] White is better.} Bxe3 {[%emt 0:05:16]} 9. fxe3 {[%emt 0:16:55]} b6 {[%emt 0:11:50]} 10. O-O {[%emt 0:14:29]} Bb7 {[%emt 0:00:37]} 11. Rf4 {[%emt 0:05:09][%cal Oc3d5] And now Nd5! would win.} Nd8 {[%emt 0:10:25][%cal Bc6d8,Bd8e6,Be6g5][%mdl 32]} 12. Qf1 {[%emt 0:06:39]} Ne6 {[%emt 0:05:34]} 13. Rf5 {[%emt 0:00:36]} Ng5 {[%emt 0:05:05]} 14. b3 {[%emt 0:02:03]} d6 {[%emt 0:04:05]} 15. Bb2 {[%emt 0:00:45][%cal Of5f6]} O-O {[%emt 0:01:38] [#]} (15... Ngh7 $14) 16. Rxf6 $1 $16 {[%emt 0:11:00][%mdl 512]} Qxf6 {[%emt 0:02:07]} 17. Qxf6 {[%emt 0:00:23]} gxf6 {[%emt 0:00:05]} 18. Rf1 {[%emt 0:01:00]} Rae8 {[%emt 0:04:38]} 19. Nb5 {[%emt 0:03:05]} a6 {[%emt 0:00:55]} (19... Ne6 $16 {was worth a try.}) 20. Nxc7 $18 {[%emt 0:01:44]} Rc8 {[%emt 0:00:57]} 21. Nd5 {[%emt 0:00:31]} Bxd5 {[%emt 0:00:56]} 22. cxd5 {[%emt 0:00:02]} Rc2 {[%emt 0:04:08]} 23. Bc3 {[%emt 0:00:10]} Nh7 {[%emt 0:01:16]} (23... Rxa2 $2 24. Rxf6 (24. Bxf6 Rxd2 25. h4 Nh7 $11) 24... Rc8 25. Kf2 $18 (25. Rxh6 Rxc3 26. dxc3 Rxe2 $18)) 24. Bxe4 {[%emt 0:05:41]} Rxa2 {[%emt 0:00:05] [#]} 25. Rf4 {[%emt 0:01:54] White has more active pieces.} (25. Bxf6 Nxf6 (25... Rxd2 26. Bd3 $17) 26. Rxf6 Rd8 $17 (26... Rxd2 27. Bd3 $15)) (25. Bxh7+ $142 $1 Kxh7 26. Rxf6 (26. Bxf6 $2 Rxd2 27. Rf2 Rxd5 $19)) 25... Ng5 {[%emt 0:02:36] [#]} (25... a5 $16) 26. Bf5 $1 {[%emt 0:00:29]} (26. Bxf6 $2 Nh3+ (26... Rxd2 27. Bf5 $11) 27. Kf1 Nxf4 (27... Rxd2 $2 28. Rg4+ Ng5 29. h4 $18) 28. gxf4 Rxd2 $19) 26... Ra3 $2 {[%emt 0:01:45]} (26... Nh7 27. Bxh7+ Kxh7 28. Rxf6 (28. Bxf6 $2 {perishes.} Rxd2 29. Kf2 Rxd5 $19) 28... b5 29. Rxd6 Rb8) 27. Bxf6 {[%emt 0:00:43] Rh4 would now be deadly. A strong pair of Bishops.} Rxb3 {[%emt 0:01:47]} 28. h4 {[%emt 0:00:24] Weighted Error Value: White=0.10 (very precise) /Black=0.59.  Mistake:       	White=1     	Black=4      Inaccurate:     	White=1     	Black=3      OK:         	White=8     	Black=9      Best:        	White=3     	---        Brilliant:      	White=1     	---} (28. Rh4 $142 Nh7 29. Rg4+ (29. Rxh6 $2 {too greedy.} Nxf6 30. Rxf6 Rd8 $19) 29... Ng5 30. h4 Rb4 31. Rxb4 Nh3+ 32. Bxh3 h5 33. Bf5 (33. Rxb6 a5 34. Rxd6 Rb8 35. Ra6 a4 36. Bf5 Rf8 37. d6 a3 38. Rxa3 Re8)) 1-0

[Event "British Championship 2024"]
[Site "Hull"]
[Date "2024.07.31"]
[Round "5.3"]
[White "Wadsworth, Matthew J"]
[Black "Bazakutsa, Svyatoslav"]
[Result "1-0"]
[Annotator "TA"]
[ECO "E92"]
[WhiteElo "2467"]
[BlackElo "2470"]
[PlyCount "97"]
[EventDate "2024.07.31"]
[EventCountry "GBR"]
[SourceTitle "playchess.com"]
[Source "ChessBase"]
[SourceQuality "1"]
[TimeControl "40/5400+30:1800+30"]

{[%evp 24,97,11,16,24,33,6,0,33,31,52,0,15,0,32,27,36,27,23,30,95,105,86,97,93,101,100,98,128,123,161,163,223,218,231,77,95,99,198,191,215,209,210,208,244,242,315,300,293,306,591,578,535,584,569,452,587,575,786,780,720,708,702,688,709,727,777,761,2692,2751,2619,2414,29963,29966,29977,29975]} 1. d4 {[%emt 0:00:10]} Nf6 {[%emt 0:00:20]} 2. c4 {[%emt 0:00:09]} g6 {[%emt 0:00:06]} 3. Nc3 {[%emt 0:00:11]} Bg7 {[%emt 0:00:07]} 4. e4 {[%emt 0:00:07]} d6 {[%emt 0:00:04]} 5. Nf3 {[%emt 0:00:22]} O-O {[%emt 0:00:08]} 6. Be2 {[%emt 0:00:12]} e5 {[%emt 0:00:06]} 7. Be3 {[%emt 0:00:06]} exd4 {[%emt 0:00:09]} 8. Nxd4 {[%emt 0:00:23]} Re8 {[%emt 0:00:09]} 9. f3 {[%emt 0:00:12]} c6 {[%emt 0:00:07]} 10. Bf2 {[%emt 0:00:16]} d5 {[%emt 0:00:08]} 11. exd5 {[%emt 0:00:09]} cxd5 {[%emt 0:00:06]} 12. O-O {[%emt 0:00:09]} Nc6 {[%emt 0:00:13]} 13. c5 {[%emt 0:00:53]} Bd7 {[%emt 0:00:21]} 14. Ndb5 {[%emt 0:00:33]} Re7 {[%emt 0:00:23]} 15. Re1 {[%emt 0:01:03][%cal Od1d2]} Be6 {[%emt 0:04:32][%cal Od5d4] The position is equal.} 16. Nd4 {[%emt 0:02:52]} Nd7 {[%emt 0:26:38]} 17. Nxe6 {[%emt 0:16:33]} fxe6 {[%emt 0:01:02]} 18. Rb1 {[%emt 0:13:04]} Qa5 {[%emt 0:29:21]} 19. a3 {[%emt 0:08:20]} a6 {[%emt 0:02:44][%cal Og7e5] Dodges Nb5} 20. b4 {[%emt 0:01:58]} Qc7 {[%emt 0:02:54]} (20... Qxa3 $2 21. Rb3 $18) 21. Qd2 {[%emt 0:02:49]} Qe5 {[%emt 0:02:51] [#]} (21... Rf8 $11) 22. Bxa6 $1 $16 {[%emt 0:06:52][%cal Be2a6,Ba6b7,Bb7c6][%mdl 32]} Qxc3 {[%emt 0:01:43]} 23. Qxc3 {[%emt 0:00:07]} Bxc3 {[%emt 0:00:05]} 24. Bxb7 {[%emt 0:00:05]} Rxa3 {[%emt 0:03:00]} 25. Bxc6 {[%emt 0:00:42]} Bxe1 {[%emt 0:00:16]} 26. Rxe1 {[%emt 0:00:45]} Kf7 {[%emt 0:11:35]} 27. Bh4 {[%emt 0:08:03][%mdl 1024] White has strong compensation.} Nf6 {[%emt 0:02:27]} (27... Rd3 {was necessary.} 28. Bxe7 Kxe7) 28. b5 $18 {[%emt 0:00:21] aiming for Rb1.} Rc7 {[%emt 0:06:23] [#]} 29. Bg3 $2 {[%emt 0:02:12]} (29. Rb1 $1 $18 {and the rest is easy. Threatens to win with b6.} Ra5 30. Bg3) 29... Rc8 $16 {[%emt 0:03:49]} 30. Bd6 {[%emt 0:01:27]} Rc3 {[%emt 0:02:15]} (30... d4 $16) 31. Ra1 $18 {[%emt 0:03:05]} g5 {[%emt 0:00:45]} 32. Ra7+ {[%emt 0:02:33]} Kg6 {[%emt 0:00:02] [#]} 33. Re7 $1 {[%emt 0:01:07]} g4 {[%emt 0:00:23]} 34. Rxe6 {[%emt 0:04:06] Bd7 is the strong threat.} gxf3 {[%emt 0:00:02]} 35. gxf3 {[%emt 0:01:20]} (35. Bxd5 R8xc5 36. Be4+ (36. Bxc5 Rxc5 37. Bxf3 Rxb5 $14) (36. Bxf3 Rxb5 37. Re1 Rf5 $11) 36... Kg7 $16) 35... Kf5 {[%emt 0:01:42]} 36. Re5+ {[%emt 0:00:48]} Kf4 $2 {[%emt 0:00:01]} (36... Kg6 {might work better.} 37. Kf2 (37. Bxd5 Nxd5 38. Rxd5 Rxf3 $16) 37... h5) 37. Rxd5+ {[%emt 0:00:30]} ({And not} 37. Re8+ Kxf3 38. Re1 (38. Rxc8 $2 Rc1#) (38. Bxd5+ $2 Nxd5 39. Re1 Rg8+ 40. Kh1 Nf6 $19) 38... Rg8+ 39. Bg3 Kg4 $11) 37... Ke3 {[%emt 0:00:28]} 38. Re5+ {[%emt 0:01:26]} Kd4 {[%emt 0:00:11]} 39. Rg5 {[%emt 0:02:35] Strongly threatening Be5+.} Rc1+ {[%emt 0:01:24]} 40. Kg2 {[%emt 0:00:06] Hoping for Be5+.} h6 {[%emt 0:00:54]} 41. Rf5 {[%emt 0:34:09]} Nh7 {[%emt 0:08:23]} 42. Rf4+ {[%emt 0:00:00]} Ke3 {[%emt 0:00:08]} 43. Re4+ {[%emt 0:00:00]} Kd3 {[%emt 0:00:06]} 44. Re8 {[%emt 0:00:00]} Rxe8 {[%emt 0:04:05]} 45. Bxe8 {[%emt 0:00:00] This pair of bishops is nice.} Ng5 {[%emt 0:00:08]} 46. b6 {[%emt 0:00:00]} Rc2+ {[%emt 0:01:34]} 47. Kg3 {[%emt 0:00:00] Bg6+ would now be deadly.} Rb2 {[%emt 0:00:09]} 48. c6 {[%emt 0:00:00][%cal Bc5c6,Bc6c7][%mdl 32]} Rxb6 {[%emt 0:01:35]} 49. c7 {[%emt 0:00:00] Weighted Error Value: White=0.16 (very precise) /Black=0.60.  Mistake:       	White=1     	Black=4      Inaccurate:     	White=1     	Black=6      OK:         	White=9     	Black=6      Best:        	White=5     	Black=3      Strong:       	White=1     	---        Brilliant:      	White=1     	---} 1-0